fUST/lending_fUST_20250818
["ID","MTS","AMOUNT","RATE_DAILY","PERIOD"]
[380012542,1755473441720,-346.87750768,0.00019178,2]
[380012543,1755473441730,-213.995171,0.00019178,2]
[380012544,1755473441739,-480.0,0.00019178,2]
[380012545,1755473441749,-440.0,0.00019178,2]
[380012546,1755473441759,-480.0,0.00019178,2]
[380012547,1755473441768,-480.0,0.00019178,2]
[380012548,1755473441778,-480.0,0.00019178,2]
[380012549,1755473441788,-480.0,0.00019178,2]
[380012550,1755473441797,-480.0,0.00019178,2]
[380012551,1755473441806,-480.0,0.00019178,2]
[380012552,1755473441815,-480.0,0.00019178,2]
[380012553,1755473441824,-480.0,0.00019178,2]
[380012554,1755473441834,-480.0,0.00019178,2]
[380012555,1755473441843,-1562.46,0.00019178,2]
[380012556,1755473441852,-151.0,0.00019178,2]
[380012557,1755473441862,-500.0,0.00019178,2]
[380012558,1755473441872,-500.0,0.00019178,2]
[380012559,1755473441882,-480.0,0.00019178,2]
[380012560,1755473441891,-500.0,0.00019178,2]
[380012561,1755473441900,-350.01642813,0.00019178,2]
[380012562,1755473441910,-500.0,0.00019178,2]
[380012563,1755473441919,-500.0,0.00019178,2]
[380012564,1755473441929,-480.0,0.00019178,2]
[380012565,1755473441938,-1505.1,0.00019178,2]
[380012566,1755473441947,-480.0,0.00019178,2]
[380012567,1755473441957,-151.0,0.00019178,2]
[380012568,1755473441967,-156.51328,0.00019178,2]
[380012569,1755473441976,-480.0,0.00019178,2]
[380012570,1755473441985,-480.0,0.00019178,2]
[380012571,1755473441995,-521.85,0.00019178,2]
[380012572,1755473442004,-480.0,0.00019178,2]
[380012573,1755473442013,-231.27412935,0.00019178,2]
[380012574,1755473442022,-564.76,0.00019178,2]
[380012575,1755473442032,-480.0,0.00019178,2]
[380012576,1755473442041,-480.0,0.00019178,2]
[380012577,1755473442051,-480.0,0.00019178,2]
[380012578,1755473442060,-151.0,0.00019178,2]
[380012579,1755473442069,-151.0,0.00019178,2]
[380012580,1755473442078,-500.0,0.00019178,2]
[380012581,1755473442087,-2183.31810187,0.00019221,2]
[380012582,1755473442097,-2618.37060375,0.00019266,2]
[380012583,1755473442107,-151.0,0.00019266,2]
[380012584,1755473442116,-151.0,0.00019266,2]
[380012585,1755473442126,-151.0,0.00019266,2]
[380012586,1755473442135,-151.0,0.00019352,2]
[380012587,1755473442144,-428.59793,0.00019352,2]
[380012588,1755473442155,-428.59793,0.00019352,2]
[380012589,1755473442165,-151.0,0.00019352,2]
[380012590,1755473442176,-151.0,0.00019352,2]
[380012591,1755473442185,-151.0,0.00019352,2]
[380012592,1755473442195,-480.0,0.00019452,2]
[380012593,1755473442205,-480.0,0.00019452,2]
[380012594,1755473442216,-480.0,0.00019452,2]
[380012595,1755473442225,-480.0,0.00019452,2]
[380012596,1755473442235,-480.0,0.00019452,2]
[380012597,1755473442245,-480.0,0.00019452,2]
[380012598,1755473442254,-480.0,0.00019452,2]
[380012599,1755473442263,-151.0,0.00019452,2]
[380012600,1755473442272,-480.0,0.00019452,2]
[380012601,1755473442282,-151.0,0.00019452,2]
[380012602,1755473442292,-480.0,0.00019452,2]
[380012603,1755473442301,-480.0,0.00019452,2]
[380012604,1755473442310,-480.0,0.00019452,2]
[380012605,1755473442320,-480.0,0.00019452,2]
[380012606,1755473442329,-151.0,0.00019452,2]
[380012607,1755473442338,-480.0,0.00019452,2]
[380012608,1755473442347,-151.0,0.00019452,2]
[380012610,1755473442357,-480.0,0.00019452,2]
[380012612,1755473442366,-480.0,0.00019452,2]
[380012614,1755473442375,-480.0,0.00019452,2]
[380012615,1755473442384,-480.0,0.00019452,2]
[380012616,1755473442393,-612.5957836,0.00019452,2]
[380012617,1755473442403,-480.0,0.00019452,2]
[380012619,1755473442412,-480.0,0.00019452,2]
[380012620,1755473442421,-480.0,0.00019452,2]
[380012621,1755473442430,-483.9025049,0.00019452,2]
[380012622,1755473442439,-480.0,0.00019452,2]
[380012623,1755473442448,-480.06418187,0.00019452,2]
[380012624,1755473442458,-480.0,0.00019452,2]
[380012625,1755473442467,-480.0,0.00019452,2]
[380012626,1755473442476,-480.0,0.00019452,2]
[380012627,1755473442485,-151.0,0.00019452,2]
[380012628,1755473442494,-151.0,0.00019452,2]
[380012629,1755473442504,-480.0,0.00019452,2]
[380012630,1755473442513,-151.0,0.00019452,2]
[380012631,1755473442523,-151.0,0.00019452,2]
[380012633,1755473442533,-385.73699553,0.00019452,2]
[380012634,1755473442542,-480.0,0.00019452,2]
[380012635,1755473442552,-296.102351,0.00019452,2]
[380012636,1755473442561,-296.102351,0.00019452,2]
[380012637,1755473442570,-440.0,0.00019452,2]
[380012638,1755473442579,-480.0,0.00019452,2]
[380012639,1755473442589,-151.0,0.00019452,2]
[380012640,1755473442598,-480.0,0.00019452,2]
[380012641,1755473442607,-165.41063649,0.00019452,2]
[380012642,1755473442616,-151.0,0.00019452,2]
[380012643,1755473442626,-263.492621,0.00019452,2]
[380012644,1755473442635,-480.0,0.00019452,2]
[380012645,1755473442644,-151.0,0.00019452,2]
[380012646,1755473442654,-480.0,0.00019452,2]
[380012647,1755473442663,-151.0,0.00019452,2]
[380012648,1755473442672,-151.0,0.00019452,2]
[380012649,1755473442681,-480.0,0.00019452,2]
[380012650,1755473442691,-480.0,0.00019452,2]
[380012651,1755473442700,-480.0,0.00019452,2]
[380012652,1755473442710,-580.14,0.00019452,2]
[380012653,1755473442720,-480.0,0.00019452,2]
[380012654,1755473442729,-480.0,0.00019452,2]
[380012655,1755473442739,-480.0,0.00019452,2]
[380012656,1755473442748,-480.0,0.00019452,2]
[380012657,1755473442757,-151.0,0.00019452,2]
[380012658,1755473442766,-480.0,0.00019452,2]
[380012659,1755473442775,-480.0,0.00019452,2]
[380012660,1755473442785,-480.0,0.00019452,2]
[380012661,1755473442794,-480.0,0.00019452,2]
[380012662,1755473442803,-480.0,0.00019452,2]
[380012663,1755473442812,-542.44,0.00019452,2]
[380012664,1755473442821,-480.0,0.00019452,2]
[380012665,1755473442831,-480.0,0.00019452,2]
[380012666,1755473442840,-151.0,0.00019452,2]
[380012667,1755473442850,-151.0,0.00019452,2]
[380012668,1755473442859,-151.0,0.00019452,2]
[380012669,1755473442868,-480.0,0.00019452,2]
[380012670,1755473442877,-480.0,0.00019452,2]
[380012671,1755473442887,-480.0,0.00019452,2]
[380012672,1755473442896,-151.0,0.00019452,2]
[380012673,1755473442905,-151.0,0.00019452,2]
[380012674,1755473442915,-480.0,0.00019452,2]
[380012676,1755473442923,-296.414646,0.00019452,2]
[380012677,1755473442933,-296.414646,0.00019452,2]
[380012679,1755473442942,-296.414646,0.00019452,2]
[380012680,1755473442951,-296.414646,0.00019452,2]
[380012681,1755473442961,-480.0,0.00019452,2]
[380012682,1755473442970,-151.0,0.00019452,2]
[380012683,1755473442980,-151.0,0.00019452,2]
[380012684,1755473442990,-298.742321,0.00019452,2]
[380012685,1755473442999,-298.742321,0.00019452,2]
[380012686,1755473443009,-480.0,0.00019452,2]
[380012687,1755473443019,-298.742321,0.00019452,2]
[380012688,1755473443028,-298.742321,0.00019452,2]
[380012689,1755473443037,-480.0,0.00019452,2]
[380012690,1755473443047,-196.648819,0.00019452,2]
[380012691,1755473443056,-196.648819,0.00019452,2]
[380012693,1755473443066,-290.189176,0.00019452,2]
[380012695,1755473443075,-480.0,0.00019452,2]
[380012697,1755473443084,-480.0,0.00019452,2]
[380012699,1755473443093,-480.0,0.00019452,2]
[380012700,1755473443103,-313.528886,0.00019452,2]
[380012702,1755473443112,-313.528886,0.00019452,2]
[380012704,1755473443122,-480.0,0.00019452,2]
[380012705,1755473443131,-480.0,0.00019452,2]
[380012706,1755473443140,-313.528886,0.00019452,2]
[380012707,1755473443151,-313.528886,0.00019452,2]
[380012708,1755473443165,-482.38955534,0.00019452,2]
[380012709,1755473443174,-480.0,0.00019452,2]
[380012710,1755473443183,-293.84759305,0.00019452,2]
[380012712,1755473443193,-428.59793,0.00019452,2]
[380012713,1755473443201,-480.0,0.00019452,2]
[380012714,1755473443211,-679.1,0.00019452,2]
[380012715,1755473443220,-480.0,0.00019452,2]
[380012716,1755473443230,-428.59793,0.00019452,2]
[380012717,1755473443239,-480.0,0.00019452,2]
[380012718,1755473443248,-480.0,0.00019452,2]
[380012719,1755473443257,-480.0,0.00019452,2]
[380012720,1755473443267,-151.0,0.00019452,2]
[380012721,1755473443277,-274.07,0.00019452,2]
[380012722,1755473443286,-2456.53,0.00019452,2]
[380012723,1755473443295,-151.0,0.00019452,2]
[380012724,1755473443304,-151.0,0.00019452,2]
[380012725,1755473443313,-480.0,0.00019452,2]
[380012726,1755473443322,-480.0,0.00019452,2]
[380012727,1755473443331,-480.0,0.00019452,2]
[380012728,1755473443341,-480.0,0.00019452,2]
[380012729,1755473443351,-151.0,0.00019452,2]
[380012730,1755473443360,-480.0,0.00019452,2]
[380012731,1755473443369,-581.88,0.00019452,2]
[380012732,1755473443378,-480.0,0.00019452,2]
[380012733,1755473443388,-480.0,0.00019452,2]
[380012734,1755473443397,-480.0,0.00019452,2]
[380012735,1755473443407,-168.05,0.00019452,2]
[380012736,1755473443416,-480.0,0.00019452,2]
[380012737,1755473443425,-480.0,0.00019452,2]
[380012738,1755473443435,-480.0,0.00019452,2]
[380012739,1755473443444,-480.0,0.00019452,2]
[380012740,1755473443454,-480.0,0.00019452,2]
[380012741,1755473443464,-480.0,0.00019452,2]
[380012742,1755473443473,-151.0,0.00019452,2]
[380012743,1755473443482,-480.0,0.00019452,2]
[380012744,1755473443491,-480.0,0.00019452,2]
[380012745,1755473443500,-151.0,0.00019452,2]
[380012746,1755473443508,-151.0,0.00019452,2]
[380012747,1755473443518,-480.0,0.00019452,2]
[380012748,1755473443527,-153.946442,0.00019452,2]
[380012749,1755473443536,-480.0,0.00019452,2]
[380012750,1755473443545,-480.0,0.00019452,2]
[380012751,1755473443554,-824.92,0.00019452,2]
[380012752,1755473443563,-480.0,0.00019452,2]
[380012753,1755473443571,-440.0,0.00019452,2]
[380012754,1755473443581,-614.56,0.00019452,2]
[380012756,1755473443590,-480.0,0.00019452,2]
[380012757,1755473443600,-498.16,0.00019452,2]
[380012758,1755473443609,-480.0,0.00019452,2]
[380012760,1755473443619,-461.24,0.00019452,2]
[380012761,1755473443628,-482.78742704,0.00019452,2]
[380012762,1755473443637,-151.0,0.00019452,2]
[380012763,1755473443647,-151.0,0.00019452,2]
[380012764,1755473443656,-480.0,0.00019452,2]
[380012765,1755473443665,-480.0,0.00019452,2]
[380012766,1755473443674,-480.0,0.00019452,2]
[380012767,1755473443684,-151.0,0.00019452,2]
[380012768,1755473443693,-151.0,0.00019452,2]
[380012769,1755473443702,-480.0,0.00019452,2]
[380012770,1755473443711,-480.0,0.00019452,2]
[380012771,1755473443721,-480.0,0.00019452,2]
[380012772,1755473443730,-616.44742236,0.00019452,2]
[380012773,1755473443739,-1562.46,0.00019452,2]
[380012774,1755473443748,-480.0,0.00019452,2]
[380012775,1755473443757,-1505.1,0.00019452,2]
[380012776,1755473443767,-480.0,0.00019452,2]
[380012777,1755473443776,-480.0,0.00019452,2]
[380012778,1755473443785,-480.0,0.00019452,2]
[380012779,1755473443794,-480.0,0.00019452,2]
[380012780,1755473443803,-480.0,0.00019452,2]
[380012781,1755473443813,-500.0,0.00019473,2]
[380012782,1755473443822,-500.0,0.00019473,2]
[380012783,1755473443832,-500.0,0.00019473,2]
[380012784,1755473443842,-500.0,0.00019473,2]
[380012785,1755473443851,-158.64845359,0.00019473,2]
[380012786,1755473443860,-443.03042322,0.00019473,2]
[380012787,1755473443869,-500.0,0.00019473,2]
[380012788,1755473443879,-380.3501662,0.00019473,2]
[380012789,1755473443892,-258.73486462,0.00019473,2]
[380012790,1755473443924,-151.0,0.00019521,2]
[380012791,1755473443934,-151.0,0.00019521,2]
[380012792,1755473443943,-151.0,0.00019521,2]
[380012793,1755473443953,-151.0,0.00019521,2]
[380012794,1755473444065,-198.0,0.00019521,2]
[380012795,1755473444075,-151.0,0.00019521,2]
[380012796,1755473444084,-151.2569465,0.00019521,2]
[380012797,1755473444094,-151.0,0.00019521,2]
[380012798,1755473444103,-151.0,0.00019521,2]
[380012799,1755473444112,-151.0,0.00019521,2]
[380012800,1755473444122,-475.0,0.00019521,2]
[380012801,1755473444131,-151.0,0.00019521,2]
[380012802,1755473444140,-151.0,0.00019521,2]
[380012803,1755473444149,-201.65566068,0.00019521,2]
[380012804,1755473444164,-151.0,0.00019521,2]
[380012805,1755473444173,-151.0,0.00019521,2]
[380012806,1755473444183,-151.0,0.00019521,2]
[380012807,1755473444192,-151.0,0.00019521,2]
[380012808,1755473444203,-151.0,0.00019521,2]
[380012809,1755473444212,-151.0,0.00019521,2]
[380012810,1755473444221,-151.0,0.00019521,2]
[380012811,1755473444230,-239.82997205,0.00019521,2]
[380012812,1755473444241,-189.19364358,0.00019521,2]
[380012813,1755473444251,-500.0,0.00019521,2]
[380012814,1755473444260,-151.0,0.00019521,2]
[380012815,1755473444270,-151.0,0.00019521,2]
[380012816,1755473444279,-500.0,0.0001956,2]
[380012817,1755473444288,-200.0,0.00019561,20]
[380012818,1755473444298,-200.0,0.00019561,20]
[380012819,1755473444308,-200.0,0.00019561,20]
[380012820,1755473444317,-200.0,0.00019561,20]
[380012821,1755473444327,-200.0,0.00019561,20]
[380012822,1755473444336,-200.0,0.00019561,20]
[380012823,1755473444345,-200.0,0.00019561,20]
[380012824,1755473444355,-200.0,0.00019561,20]
[380012825,1755473444364,-200.0,0.00019561,20]
[380012826,1755473444373,-200.0,0.00019561,20]
[380012827,1755473444382,-600.0,0.00019561,20]
[380012828,1755473444392,-151.0,0.00019561,2]
[380012829,1755473444401,-329.0,0.00019686,2]
[380012830,1755473444410,-243.48362415,0.00019714,2]
[380012831,1755473444419,-480.0,0.00019726,2]
[380012832,1755473444429,-151.0,0.00019726,2]
[380012833,1755473444439,-492.35,0.00019726,2]
[380012834,1755473444448,-480.0,0.00019726,2]
[380012835,1755473444458,-480.0,0.00019726,2]
[380012836,1755473444467,-323.03969031,0.00019726,2]
[380012837,1755473444476,-480.0,0.00019726,2]
[380012838,1755473444486,-151.0,0.00019726,2]
[380012839,1755473444495,-151.0,0.00019726,2]
[380012840,1755473444505,-480.0,0.00019726,2]
[380012841,1755473444514,-480.0,0.00019726,2]
[380012842,1755473444523,-480.0,0.00019726,2]
[380012843,1755473444532,-480.0,0.00019726,2]
[380012844,1755473444541,-480.0,0.00019726,2]
[380012845,1755473444551,-610.65,0.00019726,2]
[380012846,1755473444560,-480.0,0.00019726,2]
[380012847,1755473444570,-480.0,0.00019726,2]
[380012848,1755473444579,-151.0,0.00019726,2]
[380012849,1755473444588,-298.742321,0.00019726,2]
[380012850,1755473444598,-480.0,0.00019726,2]
[380012851,1755473444608,-298.742321,0.00019726,2]
[380012852,1755473444617,-480.0,0.00019726,2]
[380012853,1755473444626,-196.648819,0.00019726,2]
[380012854,1755473444636,-480.0,0.00019726,2]
[380012855,1755473444645,-526.49,0.00019726,2]
[380012856,1755473444655,-313.528886,0.00019726,2]
[380012857,1755473444664,-480.0,0.00019726,2]
[380012858,1755473444673,-480.0,0.00019726,2]
[380012859,1755473444684,-313.528886,0.00019726,2]
[380012860,1755473444694,-428.59793,0.00019726,2]
[380012861,1755473444703,-480.0,0.00019726,2]
[380012862,1755473444713,-679.1,0.00019726,2]
[380012863,1755473444722,-480.0,0.00019726,2]
[380012864,1755473444732,-428.59793,0.00019726,2]
[380012865,1755473444741,-480.0,0.00019726,2]
[380012866,1755473444750,-480.0,0.00019726,2]
[380012867,1755473444759,-151.0,0.00019726,2]
[380012868,1755473444769,-151.0,0.00019726,2]
[380012869,1755473444778,-2456.53,0.00019726,2]
[380012870,1755473444788,-241.435134,0.00019726,2]
[380012871,1755473444797,-480.0,0.00019726,2]
[380012872,1755473444806,-480.0,0.00019726,2]
[380012873,1755473444816,-308.99,0.00019726,2]
[380012874,1755473444825,-480.0,0.00019726,2]
[380012875,1755473444834,-151.0,0.00019726,2]
[380012876,1755473444844,-480.0,0.00019726,2]
[380012877,1755473444854,-480.0,0.00019726,2]
[380012878,1755473444863,-480.0,0.00019726,2]
[380012879,1755473444872,-480.0,0.00019726,2]
[380012880,1755473444881,-480.0,0.00019726,2]
[380012881,1755473444891,-480.0,0.00019726,2]
[380012882,1755473444900,-209.802166,0.00019726,2]
[380012883,1755473444909,-480.0,0.00019726,2]
[380012884,1755473444918,-151.0,0.00019726,2]
[380012885,1755473444928,-480.0,0.00019726,2]
[380012886,1755473444938,-824.92,0.00019726,2]
[380012887,1755473444948,-241.09264556,0.00019726,2]
[380012888,1755473444958,-498.16,0.00019726,2]
[380012889,1755473444968,-551.36,0.00019726,2]
[380012890,1755473444977,-151.0,0.00019726,2]
[380012891,1755473444986,-480.0,0.00019726,2]
[380012892,1755473444995,-480.0,0.00019726,2]
[380012893,1755473445005,-151.0,0.00019726,2]
[380012894,1755473445014,-499.36,0.00019726,2]
[380012895,1755473445024,-1562.46,0.00019726,2]
[380012896,1755473445033,-1505.1,0.00019726,2]
[380012897,1755473445042,-480.0,0.00019726,2]
[380012898,1755473445052,-480.0,0.00019726,2]
[380012899,1755473445063,-1000.0,0.00019744,5]
[380012900,1755473445073,-500.0,0.0001979,2]
[380012901,1755473445082,-500.0,0.0001979,2]
[380012902,1755473445091,-500.0,0.0001979,5]
[380012903,1755473445100,-500.0,0.0001979,2]
[380012904,1755473445109,-198.0,0.00019795,2]
[380012905,1755473445118,-198.0,0.00019795,2]
[380012906,1755473445127,-198.0,0.00019795,2]
[380012907,1755473445136,-475.0,0.00019795,2]
[380012908,1755473445146,-151.0,0.00019795,2]
[380012909,1755473445160,-151.0,0.00019795,2]
[380012910,1755473445169,-151.0,0.00019795,2]
[380012911,1755473445178,-151.0,0.00019795,2]
[380012912,1755473445187,-547.0,0.00019795,2]
[380012913,1755473445197,-151.0,0.00019795,2]
[380012914,1755473445207,-151.0,0.00019795,2]
[380012915,1755473445216,-151.0,0.00019795,2]
[380012916,1755473445225,-151.0,0.00019795,2]
[380012917,1755473445235,-151.0,0.00019795,2]
[380012918,1755473445244,-151.0,0.00019795,2]
[380012919,1755473445254,-151.0,0.00019795,2]
[380012920,1755473445263,-151.0,0.00019795,2]
[380012921,1755473445272,-151.0,0.00019795,2]
[380012922,1755473445281,-151.0,0.00019795,2]
[380012923,1755473445291,-296.102351,0.00019795,2]
[380012925,1755473445301,-296.102351,0.00019795,2]
[380012927,1755473445311,-151.0,0.00019795,2]
[380012928,1755473445320,-151.0,0.00019795,2]
[380012929,1755473445330,-151.0,0.00019795,2]
[380012930,1755473445340,-296.414646,0.00019795,2]
[380012931,1755473445350,-296.414646,0.00019795,2]
[380012932,1755473445359,-151.0,0.000198,2]
[380012933,1755473445368,-151.0,0.000198,2]
[380012934,1755473445378,-150.0,0.00019836,2]
[380012935,1755473445387,-881.610112,0.00019863,2]
[380012936,1755473445396,-500.0,0.00019899,2]
[380012938,1755473445406,-151.0,0.000199,2]
[380012939,1755473445415,-151.0,0.000199,2]
[380012941,1755473445425,-10360.60387767,0.000199,2]
[380012942,1755473445434,-151.0,0.000199,2]
[380012943,1755473445443,-2579.11508088,0.00019944,2]
[380012944,1755473445453,-500.0,0.00019973,2]
[380012945,1755473445462,-626.05963948,0.00019973,2]
[380012946,1755473445471,-541.71037648,0.00019973,2]
[380012947,1755473445481,-500.0,0.00019973,2]
[380012948,1755473445490,-500.0,0.00019973,2]
[380012949,1755473445500,-500.0,0.00019973,2]
[380012950,1755473445509,-500.0,0.00019973,2]
[380012951,1755473445518,-500.0,0.00019973,2]
[380012952,1755473445528,-501.12416989,0.00019973,2]
[380012953,1755473445537,-500.0,0.00019973,2]
[380012954,1755473445546,-500.0,0.00019973,2]
[380012955,1755473445555,-426.45244949,0.00019973,2]
[380012956,1755473445565,-474.40055126,0.00019973,2]
[380012957,1755473445574,-500.0,0.00019973,2]
[380012958,1755473445583,-160.31078128,0.00019973,2]
[380012960,1755473445593,-500.0,0.00019973,2]
[380012961,1755473445603,-500.0,0.00019973,2]
[380012962,1755473445612,-500.0,0.00019973,2]
[380012963,1755473445622,-167.68923922,0.00019973,2]
[380012964,1755473445631,-500.0,0.00019973,2]
[380012965,1755473445641,-500.0,0.00019973,2]
[380012966,1755473445650,-254.58585111,0.00019973,2]
[380012967,1755473445660,-500.0,0.00019973,2]
[380012968,1755473445669,-500.0,0.00019973,2]
[380012969,1755473445678,-500.0,0.00019973,2]
[380012970,1755473445688,-489.26136196,0.00019973,2]
[380012971,1755473445697,-500.0,0.00019973,2]
[380012972,1755473445707,-500.0,0.00019973,2]
[380012973,1755473445716,-465.27039241,0.00019973,2]
[380012974,1755473445726,-500.0,0.0001999,5]
[380012975,1755473445736,-500.35720483,0.0001999,5]
[380012976,1755473445745,-500.0,0.0001999,2]
[380012977,1755473445754,-403.69377255,0.0002,2]
[380012978,1755473445764,-480.0,0.0002,2]
[380012979,1755473445773,-151.0,0.0002,2]
[380012981,1755473445783,-220.39901,0.0002,2]
[380012982,1755473445792,-511.59,0.0002,2]
[380012983,1755473445803,-480.0,0.0002,2]
[380012984,1755473445812,-396.63,0.0002,2]
[380012985,1755473445822,-151.0,0.0002,2]
[380012986,1755473445831,-151.0,0.0002,2]
[380012987,1755473445840,-296.414646,0.0002,2]
[380012988,1755473445850,-296.414646,0.0002,2]
[380012989,1755473445860,-151.0,0.0002,2]
[380012990,1755473445869,-298.742321,0.0002,2]
[380012991,1755473445879,-480.0,0.0002,2]
[380012992,1755473445888,-298.742321,0.0002,2]
[380012993,1755473445899,-480.0,0.0002,2]
[380012994,1755473445908,-196.648819,0.0002,2]
[380012995,1755473445918,-480.0,0.0002,2]
[380012996,1755473445927,-313.528886,0.0002,2]
[380012997,1755473445936,-480.0,0.0002,2]
[380012998,1755473445946,-313.528886,0.0002,2]
[380012999,1755473445955,-428.59793,0.0002,2]
[380013000,1755473445964,-679.1,0.0002,2]
[380013001,1755473445974,-584.35,0.0002,2]
[380013002,1755473445983,-428.59793,0.0002,2]
[380013003,1755473445992,-151.0,0.0002,2]
[380013004,1755473446001,-151.0,0.0002,2]
[380013005,1755473446009,-2456.53,0.0002,2]
[380013006,1755473446019,-194.01,0.0002,2]
[380013007,1755473446029,-576.12,0.0002,2]
[380013008,1755473446038,-480.0,0.0002,2]
[380013009,1755473446047,-183.8074,0.0002,2]
[380013010,1755473446057,-480.0,0.0002,2]
[380013011,1755473446066,-480.0,0.0002,2]
[380013012,1755473446076,-480.0,0.0002,2]
[380013013,1755473446085,-480.0,0.0002,2]
[380013014,1755473446094,-480.0,0.0002,2]
[380013015,1755473446104,-480.0,0.0002,2]
[380013016,1755473446113,-16850.21950294,0.0002,2]
[380013017,1755473446123,-100846.98679619,0.0002,2]
[380013018,1755473446132,-12277.37690369,0.0002,2]
[380013019,1755473446141,-19615.26985351,0.0002,2]
[380013020,1755473446151,-68322.52098655,0.0002,2]
[380013021,1755473446164,-480.0,0.0002,2]
[380013022,1755473446173,-28327.29049146,0.0002,2]
[380013023,1755473446183,-160.0,0.0002,3]
[380013024,1755473446192,-824.92,0.0002,2]
[380013025,1755473446201,-498.16,0.0002,2]
[380013026,1755473446210,-480.0,0.0002,2]
[380013027,1755473446220,-151.0,0.0002,2]
[380013028,1755473446229,-151.0,0.0002,2]
[380013029,1755473446239,-151.0,0.0002,2]
[380013030,1755473446248,-480.0,0.0002,2]
[380013031,1755473446257,-1562.46,0.0002,2]
[380013032,1755473446266,-1505.1,0.0002,2]
[380013033,1755473446275,-480.0,0.0002,2]
[380013034,1755473446285,-1000.0,0.00020021,2]
[380013035,1755473446295,-260.0495896,0.00020021,2]
[380013036,1755473446304,-1000.0,0.00020021,2]
[380013037,1755473446313,-797.77908351,0.00020021,2]
[380013038,1755473446326,-151.0,0.00020021,2]
[380013039,1755473446335,-151.0,0.00020028,2]
[380013040,1755473446344,-151.0,0.00020028,2]
[380013041,1755473446354,-296.102351,0.00020028,2]
[380013042,1755473446363,-296.102351,0.00020028,2]
[380013043,1755473446372,-151.0,0.00020028,2]
[380013044,1755473446382,-501.0519514,0.00020028,2]
[380013045,1755473446391,-500.0,0.00020028,2]
[380013047,1755473446400,-500.0,0.00020028,2]
[380013048,1755473446409,-500.0,0.00020028,2]
[380013049,1755473446418,-500.0,0.00020028,2]
[380013050,1755473446427,-500.0,0.00020028,2]
[380013052,1755473446437,-500.0,0.00020028,2]
[380013054,1755473446446,-500.0,0.00020028,2]
[380013055,1755473446455,-500.0,0.00020028,2]
[380013056,1755473446465,-475.0,0.00020069,2]
[380013057,1755473446474,-198.0,0.00020069,2]
[380013058,1755473446483,-198.0,0.00020069,2]
[380013059,1755473446492,-151.0,0.00020069,2]
[380013060,1755473446501,-198.0,0.00020069,2]
[380013061,1755473446510,-198.0,0.00020069,2]
[380013062,1755473446519,-151.0,0.00020069,2]
[380013063,1755473446529,-151.0,0.00020069,2]
[380013064,1755473446538,-168.591531,0.00020162,2]
[380013065,1755473446547,-151.0,0.00020173,2]
[380013066,1755473446556,-151.0,0.00020173,2]